[Event "Titled Tuesday Blitz May 24 Early 2022"]
[White "Perez Rodriguez, Jennifer"]
[Black "Kucuksari, Kaan"]
[WhiteFideId "3507831"]
[BlackFideId "6380166"]
[WhiteElo "2170"]
[BlackElo "2305"]
[Result "1-0"]
[Round "07"]
[TimeControl "180+1"]
[Date "2022.05.25"]
[WhiteClock "0:00:18"]
[BlackClock "0:00:01"]

1. e4 {[%clk 0:03:00]}  c5 {[%clk 0:02:59]} 2. c3 {[%clk 0:03:01]}  Nf6 {[%clk 0:02:57]} 3. e5 {[%clk 0:03:01]}  Nd5 {[%clk 0:02:57]} 4. d4 {[%clk 0:03:01]}  cxd4 {[%clk 0:02:53]} 5. Nf3 {[%clk 0:03:02]}  e6 {[%clk 0:02:50]} 6. cxd4 {[%clk 0:03:03]}  d6 {[%clk 0:02:49]} 7. Bd3 {[%clk 0:02:58]}  Nc6 {[%clk 0:02:49]} 8. a3 {[%clk 0:02:57]}  dxe5 {[%clk 0:02:49]} 9. dxe5 {[%clk 0:02:57]}  Qc7 {[%clk 0:02:37]} 10. O-O {[%clk 0:02:55]}  Nxe5 {[%clk 0:02:36]} 11. Nxe5 {[%clk 0:02:53]}  Qxe5 {[%clk 0:02:36]} 12. Bb5+ {[%clk 0:02:53]}  Bd7 {[%clk 0:02:34]} 13. Bxd7+ {[%clk 0:02:53]}  Kxd7 {[%clk 0:02:35]} 14. Nc3 {[%clk 0:02:53]}  Bd6 {[%clk 0:02:34]} 15. g3 {[%clk 0:02:51]}  Nxc3 {[%clk 0:02:33]} 16. bxc3 {[%clk 0:02:51]}  Rhd8 {[%clk 0:02:29]} 17. Bf4 {[%clk 0:02:48]}  Qd5 {[%clk 0:02:28]} 18. Bxd6 {[%clk 0:02:39]}  Kxd6 {[%clk 0:02:15]} 19. Qg4 {[%clk 0:02:36]}  Ke7 {[%clk 0:02:07]} 20. Qxg7 {[%clk 0:02:31]}  Rg8 {[%clk 0:02:02]} 21. Qxh7 {[%clk 0:02:30]}  Rh8 {[%clk 0:02:02]} 22. Qg7 {[%clk 0:02:23]}  Qh5 {[%clk 0:01:29]} 23. h4 {[%clk 0:02:11]}  Rag8 {[%clk 0:01:14]} 24. Qd4 {[%clk 0:02:11]}  Qxh4 {[%clk 0:01:11]} 25. Qxh4+ {[%clk 0:01:56]}  Rxh4 {[%clk 0:01:12]} 26. Rab1 {[%clk 0:01:53]}  b6 {[%clk 0:01:12]} 27. Rb4 {[%clk 0:01:52]}  Rxb4 {[%clk 0:00:52]} 28. axb4 {[%clk 0:01:47]}  Rc8 {[%clk 0:00:52]} 29. Ra1 {[%clk 0:01:47]}  Rc7 {[%clk 0:00:52]} 30. Kf1 {[%clk 0:01:45]}  Kd6 {[%clk 0:00:52]} 31. Ke2 {[%clk 0:01:45]}  Rxc3 {[%clk 0:00:30]} 32. Rxa7 {[%clk 0:01:44]}  Rc2+ {[%clk 0:00:31]} 33. Ke3 {[%clk 0:01:44]}  f5 {[%clk 0:00:31]} 34. Rb7 {[%clk 0:01:41]}  Kc6 {[%clk 0:00:30]} 35. Re7 {[%clk 0:01:41]}  Kd5 {[%clk 0:00:29]} 36. Rd7+ {[%clk 0:01:11]}  Kc6 {[%clk 0:00:17]} 37. Re7 {[%clk 0:01:10]}  Kd6 {[%clk 0:00:11]} 38. Rb7 {[%clk 0:01:10]}  Rc3+ {[%clk 0:00:09]} 39. Kd4 {[%clk 0:01:03]}  Rf3 {[%clk 0:00:08]} 40. Rxb6+ {[%clk 0:01:03]}  Kd7 {[%clk 0:00:08]} 41. Rb7+ {[%clk 0:01:01]}  Kc6 {[%clk 0:00:08]} 42. Re7 {[%clk 0:00:57]}  Kd6 {[%clk 0:00:08]} 43. Ra7 {[%clk 0:00:54]}  Rxf2 {[%clk 0:00:08]} 44. Ra6+ {[%clk 0:00:55]}  Ke7 {[%clk 0:00:08]} 45. Ra3 {[%clk 0:00:48]}  Rb2 {[%clk 0:00:07]} 46. Kc5 {[%clk 0:00:48]}  Kd7 {[%clk 0:00:05]} 47. Rd3+ {[%clk 0:00:44]}  Kc7 {[%clk 0:00:06]} 48. Re3 {[%clk 0:00:43]}  Rc2+ {[%clk 0:00:06]} 49. Kb5 {[%clk 0:00:43]}  Kd6 {[%clk 0:00:07]} 50. Rd3+ {[%clk 0:00:43]}  Ke7 {[%clk 0:00:08]} 51. Kb6 {[%clk 0:00:42]}  e5 {[%clk 0:00:08]} 52. b5 {[%clk 0:00:42]}  e4 {[%clk 0:00:08]} 53. Rd5 {[%clk 0:00:42]}  Ke6 {[%clk 0:00:08]} 54. Rc5 {[%clk 0:00:41]}  Rb2 {[%clk 0:00:05]} 55. Rc8 {[%clk 0:00:35]}  Ke5 {[%clk 0:00:05]} 56. Re8+ {[%clk 0:00:35]}  Kd4 {[%clk 0:00:06]} 57. Ka6 {[%clk 0:00:31]}  e3 {[%clk 0:00:04]} 58. b6 {[%clk 0:00:28]}  Ra2+ {[%clk 0:00:03]} 59. Kb5 {[%clk 0:00:28]}  Rb2+ {[%clk 0:00:04]} 60. Ka6 {[%clk 0:00:28]}  Ra2+ {[%clk 0:00:03]} 61. Kb5 {[%clk 0:00:28]}  e2 {[%clk 0:00:03]} 62. b7 {[%clk 0:00:25]}  Kd5 {[%clk 0:00:04]} 63. Kb6 {[%clk 0:00:21]}  Rb2+ {[%clk 0:00:05]} 64. Ka7 {[%clk 0:00:21]}  Ra2+ {[%clk 0:00:05]} 65. Kb8 {[%clk 0:00:21]}  Kc6 {[%clk 0:00:04]} 66. Re6+ {[%clk 0:00:20]}  Kd7 {[%clk 0:00:05]} 67. Re3 {[%clk 0:00:20]}  Kc6 {[%clk 0:00:02]} 68. Kc8 {[%clk 0:00:19]}  Rd2 {[%clk 0:00:01]} 69. b8=Q {[%clk 0:00:19]}  Rd8+ {[%clk 0:00:01]} 70. Kxd8 {[%clk 0:00:18]}  e1=Q {[%clk 0:00:01]} 71. Rxe1 {[%clk 0:00:18]} 1-0


[Site "https://www.chess.com"]

[Event "Titled Tuesday Blitz May 24 Early 2022"]
[White "Petrova, Irina"]
[Black "Sailer, Mike"]
[WhiteFideId "14124122"]
[BlackFideId "2012901"]
[WhiteElo "1993"]
[BlackElo "2109"]
[Result "1-0"]
[Round "07"]
[TimeControl "180+1"]
[Date "2022.05.25"]
[WhiteClock "0:00:02"]
[BlackClock "0:00:01"]

1. e4 {[%clk 0:03:00]}  d5 {[%clk 0:02:58]} 2. exd5 {[%clk 0:03:00]}  Qxd5 {[%clk 0:02:59]} 3. Nc3 {[%clk 0:03:00]}  Qd6 {[%clk 0:02:59]} 4. d4 {[%clk 0:03:00]}  Nf6 {[%clk 0:03:00]} 5. Nb5 {[%clk 0:02:59]}  Qb6 {[%clk 0:02:57]} 6. c4 {[%clk 0:02:58]}  Bg4 {[%clk 0:02:37]} 7. Be2 {[%clk 0:02:55]}  Bxe2 {[%clk 0:02:37]} 8. Nxe2 {[%clk 0:02:56]}  e6 {[%clk 0:02:38]} 9. O-O {[%clk 0:02:53]}  c6 {[%clk 0:02:35]} 10. Nbc3 {[%clk 0:02:50]}  Be7 {[%clk 0:02:36]} 11. b3 {[%clk 0:02:49]}  O-O {[%clk 0:02:36]} 12. Be3 {[%clk 0:02:49]}  Qa5 {[%clk 0:02:33]} 13. Rc1 {[%clk 0:02:47]}  Nbd7 {[%clk 0:02:26]} 14. Ng3 {[%clk 0:02:44]}  Bb4 {[%clk 0:02:03]} 15. Bd2 {[%clk 0:02:12]}  Rad8 {[%clk 0:01:45]} 16. Qc2 {[%clk 0:02:05]}  c5 {[%clk 0:01:37]} 17. a3 {[%clk 0:01:41]}  Bxc3 {[%clk 0:01:19]} 18. Bxc3 {[%clk 0:01:42]}  Qc7 {[%clk 0:01:13]} 19. dxc5 {[%clk 0:01:37]}  Nxc5 {[%clk 0:00:59]} 20. Bxf6 {[%clk 0:01:35]}  gxf6 {[%clk 0:00:59]} 21. b4 {[%clk 0:01:28]}  Nd3 {[%clk 0:00:52]} 22. Rcd1 {[%clk 0:01:26]}  Ne5 {[%clk 0:00:40]} 23. Ne4 {[%clk 0:01:16]}  f5 {[%clk 0:00:27]} 24. Nf6+ {[%clk 0:00:50]}  Kg7 {[%clk 0:00:24]} 25. Nh5+ {[%clk 0:00:49]}  Kh8 {[%clk 0:00:25]} 26. c5 {[%clk 0:00:43]}  Ng4 {[%clk 0:00:12]} 27. g3 {[%clk 0:00:38]}  Rxd1 {[%clk 0:00:11]} 28. Rxd1 {[%clk 0:00:38]}  f6 {[%clk 0:00:09]} 29. Qd2 {[%clk 0:00:30]}  Qf7 {[%clk 0:00:08]} 30. Nf4 {[%clk 0:00:28]}  e5 {[%clk 0:00:07]} 31. Ng2 {[%clk 0:00:25]}  Qh5 {[%clk 0:00:04]} 32. Nh4 {[%clk 0:00:17]}  f4 {[%clk 0:00:05]} 33. Qd6 {[%clk 0:00:16]}  Rf7 {[%clk 0:00:03]} 34. Qd8+ {[%clk 0:00:11]}  Kg7 {[%clk 0:00:04]} 35. Qc8 {[%clk 0:00:09]}  f5 {[%clk 0:00:04]} 36. Rd8 {[%clk 0:00:06]}  Nf6 {[%clk 0:00:03]} 37. Nxf5+ {[%clk 0:00:04]}  Kg6 {[%clk 0:00:02]} 38. Nd6 {[%clk 0:00:03]}  Rg7 {[%clk 0:00:01]} 39. Rf8 {[%clk 0:00:02]} 1-0


[Site "https://www.chess.com"]

[Event "Titled Tuesday Blitz May 24 Early 2022"]
[White "Petrovskyi, Vadym"]
[Black "Sismeiro, Miguel"]
[WhiteFideId "14165210"]
[BlackFideId "1950975"]
[WhiteElo "2400"]
[BlackElo "2031"]
[Result "0-1"]
[Round "07"]
[TimeControl "180+1"]
[Date "2022.05.24"]
[WhiteClock "0:00:22"]
[BlackClock "0:00:15"]

1. e4 {[%clk 0:03:00]}  g6 {[%clk 0:02:49]} 2. d4 {[%clk 0:02:56]}  Bg7 {[%clk 0:02:50]} 3. Nc3 {[%clk 0:02:53]}  d5 {[%clk 0:02:49]} 4. e5 {[%clk 0:02:52]}  c6 {[%clk 0:02:49]} 5. h3 {[%clk 0:02:51]}  f6 {[%clk 0:02:48]} 6. Nf3 {[%clk 0:02:50]}  Nh6 {[%clk 0:02:46]} 7. Bf4 {[%clk 0:02:48]}  O-O {[%clk 0:02:46]} 8. Qd2 {[%clk 0:02:44]}  Nf7 {[%clk 0:02:30]} 9. exf6 {[%clk 0:02:44]}  exf6 {[%clk 0:02:29]} 10. Be2 {[%clk 0:02:44]}  Nd6 {[%clk 0:02:27]} 11. O-O {[%clk 0:02:43]}  Bf5 {[%clk 0:02:22]} 12. Bd3 {[%clk 0:02:43]}  Bxd3 {[%clk 0:02:12]} 13. Qxd3 {[%clk 0:02:44]}  Na6 {[%clk 0:02:06]} 14. Rfe1 {[%clk 0:02:40]}  Qd7 {[%clk 0:01:56]} 15. Re2 {[%clk 0:02:33]}  Rae8 {[%clk 0:01:55]} 16. Rae1 {[%clk 0:02:32]}  Nc7 {[%clk 0:01:50]} 17. b3 {[%clk 0:02:21]}  Rxe2 {[%clk 0:01:48]} 18. Rxe2 {[%clk 0:02:20]}  Re8 {[%clk 0:01:48]} 19. Rxe8+ {[%clk 0:02:20]}  Ncxe8 {[%clk 0:01:49]} 20. a4 {[%clk 0:02:17]}  Kf7 {[%clk 0:01:47]} 21. a5 {[%clk 0:02:17]}  Qf5 {[%clk 0:01:42]} 22. Qxf5 {[%clk 0:02:00]}  Nxf5 {[%clk 0:01:40]} 23. Na4 {[%clk 0:02:01]}  Bf8 {[%clk 0:01:38]} 24. g4 {[%clk 0:01:56]}  Bd6 {[%clk 0:01:16]} 25. Bd2 {[%clk 0:01:51]}  Nfg7 {[%clk 0:01:13]} 26. Kf1 {[%clk 0:01:48]}  Ne6 {[%clk 0:01:12]} 27. Ke2 {[%clk 0:01:48]}  Bc7 {[%clk 0:01:00]} 28. c4 {[%clk 0:01:45]}  Nd6 {[%clk 0:00:58]} 29. Kd3 {[%clk 0:01:43]}  Ne4 {[%clk 0:00:57]} 30. cxd5 {[%clk 0:01:27]}  cxd5 {[%clk 0:00:53]} 31. a6 {[%clk 0:00:44]}  bxa6 {[%clk 0:00:44]} 32. Be3 {[%clk 0:00:41]}  f5 {[%clk 0:00:35]} 33. gxf5 {[%clk 0:00:35]}  gxf5 {[%clk 0:00:36]} 34. Ne5+ {[%clk 0:00:36]}  Kf6 {[%clk 0:00:25]} 35. f3 {[%clk 0:00:36]}  N4g5 {[%clk 0:00:17]} 36. Nc3 {[%clk 0:00:35]}  Bxe5 {[%clk 0:00:09]} 37. Nxd5+ {[%clk 0:00:35]}  Kf7 {[%clk 0:00:09]} 38. dxe5 {[%clk 0:00:36]}  Nxf3 {[%clk 0:00:10]} 39. Bxa7 {[%clk 0:00:33]}  Nxe5+ {[%clk 0:00:10]} 40. Ke3 {[%clk 0:00:32]}  Nc6 {[%clk 0:00:10]} 41. Bb6 {[%clk 0:00:32]}  Kg6 {[%clk 0:00:09]} 42. h4 {[%clk 0:00:23]}  Kh5 {[%clk 0:00:09]} 43. Nf4+ {[%clk 0:00:21]}  Nxf4 {[%clk 0:00:08]} 44. Kxf4 {[%clk 0:00:22]}  Kg6 {[%clk 0:00:07]} 45. h5+ {[%clk 0:00:22]}  Kf6 {[%clk 0:00:08]} 46. Bc5 {[%clk 0:00:19]}  Ke6 {[%clk 0:00:07]} 47. Kg5 {[%clk 0:00:17]}  Ne5 {[%clk 0:00:07]} 48. Bb6 {[%clk 0:00:15]}  Nd7 {[%clk 0:00:07]} 49. Bd4 {[%clk 0:00:14]}  Kd5 {[%clk 0:00:07]} 50. Bf2 {[%clk 0:00:14]}  Ke4 {[%clk 0:00:07]} 51. Bh4 {[%clk 0:00:14]}  f4 {[%clk 0:00:07]} 52. Kh6 {[%clk 0:00:15]}  Ne5 {[%clk 0:00:04]} 53. Kxh7 {[%clk 0:00:15]}  f3 {[%clk 0:00:05]} 54. Kg7 {[%clk 0:00:14]}  Ng4 {[%clk 0:00:05]} 55. h6 {[%clk 0:00:14]}  Nxh6 {[%clk 0:00:05]} 56. Kxh6 {[%clk 0:00:15]}  Ke3 {[%clk 0:00:06]} 57. Kg5 {[%clk 0:00:16]}  f2 {[%clk 0:00:07]} 58. Bxf2+ {[%clk 0:00:16]}  Kxf2 {[%clk 0:00:08]} 59. Kf4 {[%clk 0:00:17]}  Ke2 {[%clk 0:00:08]} 60. Ke4 {[%clk 0:00:17]}  Kd2 {[%clk 0:00:09]} 61. Kf3 {[%clk 0:00:15]}  Kc3 {[%clk 0:00:09]} 62. Ke2 {[%clk 0:00:16]}  Kxb3 {[%clk 0:00:10]} 63. Kd2 {[%clk 0:00:17]}  Kb2 {[%clk 0:00:11]} 64. Kd3 {[%clk 0:00:17]}  a5 {[%clk 0:00:11]} 65. Kc4 {[%clk 0:00:18]}  a4 {[%clk 0:00:12]} 66. Kb4 {[%clk 0:00:18]}  a3 {[%clk 0:00:13]} 67. Kc5 {[%clk 0:00:19]}  a2 {[%clk 0:00:14]} 68. Kd6 {[%clk 0:00:20]}  a1=Q {[%clk 0:00:15]} 69. Ke7 {[%clk 0:00:21]}  Qa6 {[%clk 0:00:15]} 70. Kf8 {[%clk 0:00:22]} 0-1


[Site "https://www.chess.com"]

[Event "Titled Tuesday Blitz May 24 Early 2022"]
[White "Pham, Tran Gia Phuc"]
[Black "Alinasab, Mobina"]
[WhiteFideId "12415669"]
[BlackFideId "12528897"]
[WhiteElo "1789"]
[BlackElo "2031"]
[Result "0-1"]
[Round "07"]
[TimeControl "180+1"]
[Date "2022.05.25"]
[WhiteClock "0:00:10"]
[BlackClock "0:00:51"]

1. e4 {[%clk 0:03:00]}  c5 {[%clk 0:02:49]} 2. Nc3 {[%clk 0:03:00]}  e6 {[%clk 0:02:46]} 3. d4 {[%clk 0:02:59]}  cxd4 {[%clk 0:02:44]} 4. Qxd4 {[%clk 0:03:00]}  Nc6 {[%clk 0:02:43]} 5. Qd3 {[%clk 0:03:00]}  Nf6 {[%clk 0:02:39]} 6. Bf4 {[%clk 0:02:59]}  d5 {[%clk 0:02:33]} 7. Nge2 {[%clk 0:02:54]}  Bb4 {[%clk 0:02:30]} 8. O-O-O {[%clk 0:02:53]}  Bxc3 {[%clk 0:02:03]} 9. Nxc3 {[%clk 0:02:51]}  d4 {[%clk 0:02:04]} 10. Qf3 {[%clk 0:01:41]}  e5 {[%clk 0:01:58]} 11. Bg5 {[%clk 0:01:40]}  Bg4 {[%clk 0:01:45]} 12. Qd3 {[%clk 0:00:54]}  Bxd1 {[%clk 0:01:34]} 13. Nxd1 {[%clk 0:00:53]}  O-O {[%clk 0:01:32]} 14. Be2 {[%clk 0:00:52]}  Rc8 {[%clk 0:01:20]} 15. a3 {[%clk 0:00:49]}  a6 {[%clk 0:01:16]} 16. f4 {[%clk 0:00:37]}  Qd6 {[%clk 0:01:12]} 17. Rf1 {[%clk 0:00:30]}  Nd7 {[%clk 0:01:10]} 18. Bg4 {[%clk 0:00:25]}  exf4 {[%clk 0:01:07]} 19. Bxf4 {[%clk 0:00:25]}  Nde5 {[%clk 0:01:05]} 20. Qg3 {[%clk 0:00:24]}  Rcd8 {[%clk 0:01:04]} 21. Nf2 {[%clk 0:00:23]}  Qe7 {[%clk 0:01:01]} 22. Nd3 {[%clk 0:00:23]}  Nxg4 {[%clk 0:00:58]} 23. Qxg4 {[%clk 0:00:23]}  Qxe4 {[%clk 0:00:58]} 24. Qg3 {[%clk 0:00:23]}  Qg6 {[%clk 0:00:57]} 25. Qf3 {[%clk 0:00:23]}  f6 {[%clk 0:00:58]} 26. Re1 {[%clk 0:00:22]}  Rfe8 {[%clk 0:00:58]} 27. Rxe8+ {[%clk 0:00:21]}  Rxe8 {[%clk 0:00:58]} 28. Qd5+ {[%clk 0:00:21]}  Qf7 {[%clk 0:00:58]} 29. Qd6 {[%clk 0:00:15]}  Qe6 {[%clk 0:00:55]} 30. Qc7 {[%clk 0:00:15]}  Qe7 {[%clk 0:00:55]} 31. Qb6 {[%clk 0:00:15]}  Ne5 {[%clk 0:00:55]} 32. Nc5 {[%clk 0:00:10]}  Nc4 {[%clk 0:00:51]} 0-1


[Site "https://www.chess.com"]

[Event "Titled Tuesday Blitz May 24 Early 2022"]
[White "Polster, Christian"]
[Black "Rodchenkov, Sergey D."]
[WhiteFideId "12965081"]
[BlackFideId "4168712"]
[WhiteElo "2303"]
[BlackElo "2306"]
[Result "1-0"]
[Round "07"]
[TimeControl "180+1"]
[Date "2022.05.25"]
[WhiteClock "0:00:05"]
[BlackClock "0:00:33"]

1. e4 {[%clk 0:03:00]}  c5 {[%clk 0:02:59]} 2. Nc3 {[%clk 0:03:00]}  d6 {[%clk 0:02:59]} 3. Nge2 {[%clk 0:02:59]}  Nf6 {[%clk 0:02:59]} 4. g3 {[%clk 0:02:55]}  g6 {[%clk 0:02:57]} 5. Bg2 {[%clk 0:02:55]}  Bg7 {[%clk 0:02:57]} 6. O-O {[%clk 0:02:51]}  O-O {[%clk 0:02:58]} 7. d4 {[%clk 0:02:49]}  cxd4 {[%clk 0:02:55]} 8. Nxd4 {[%clk 0:02:50]}  Nc6 {[%clk 0:02:55]} 9. Nb3 {[%clk 0:02:47]}  a5 {[%clk 0:02:39]} 10. a4 {[%clk 0:02:44]}  Be6 {[%clk 0:02:39]} 11. Re1 {[%clk 0:02:43]}  Ne5 {[%clk 0:02:31]} 12. h3 {[%clk 0:02:37]}  Qc8 {[%clk 0:02:29]} 13. Kh2 {[%clk 0:02:36]}  Nc4 {[%clk 0:02:23]} 14. Nd4 {[%clk 0:02:31]}  Nd7 {[%clk 0:02:22]} 15. Nd5 {[%clk 0:02:24]}  Re8 {[%clk 0:02:17]} 16. b3 {[%clk 0:02:17]}  Bxd5 {[%clk 0:02:07]} 17. exd5 {[%clk 0:02:11]}  Qc5 {[%clk 0:02:07]} 18. Re4 {[%clk 0:01:58]}  f5 {[%clk 0:02:02]} 19. Ne6 {[%clk 0:01:55]}  Qa7 {[%clk 0:01:58]} 20. Nxg7 {[%clk 0:01:51]}  fxe4 {[%clk 0:01:56]} 21. Nxe8 {[%clk 0:01:48]}  Rxe8 {[%clk 0:01:57]} 22. bxc4 {[%clk 0:01:48]}  Qxf2 {[%clk 0:01:55]} 23. Qf1 {[%clk 0:01:43]}  Rf8 {[%clk 0:01:48]} 24. Bh6 {[%clk 0:01:33]}  Rf5 {[%clk 0:01:43]} 25. Qxf2 {[%clk 0:01:13]}  Rxf2 {[%clk 0:01:44]} 26. Rb1 {[%clk 0:01:02]}  b6 {[%clk 0:01:44]} 27. Kg1 {[%clk 0:00:55]}  Rxc2 {[%clk 0:01:41]} 28. Bxe4 {[%clk 0:00:54]}  Rxc4 {[%clk 0:01:41]} 29. Bf3 {[%clk 0:00:52]}  Ne5 {[%clk 0:01:35]} 30. Be2 {[%clk 0:00:46]}  Re4 {[%clk 0:01:33]} 31. Kf2 {[%clk 0:00:43]}  Rxa4 {[%clk 0:01:28]} 32. Rxb6 {[%clk 0:00:33]}  Kf7 {[%clk 0:01:23]} 33. Rb7 {[%clk 0:00:22]}  Kf6 {[%clk 0:01:06]} 34. h4 {[%clk 0:00:22]}  Ra2 {[%clk 0:01:01]} 35. Bg5+ {[%clk 0:00:22]}  Kf5 {[%clk 0:01:01]} 36. Rxe7 {[%clk 0:00:17]}  h6 {[%clk 0:01:02]} 37. Bf4 {[%clk 0:00:13]}  Nd3+ {[%clk 0:00:42]} 38. Ke3 {[%clk 0:00:13]}  Nc5 {[%clk 0:00:36]} 39. Bxh6 {[%clk 0:00:12]}  Ra3+ {[%clk 0:00:33]} 40. Kf2 {[%clk 0:00:12]}  Ne4+ {[%clk 0:00:33]} 41. Ke1 {[%clk 0:00:11]}  Ra1+ {[%clk 0:00:33]} 42. Bd1 {[%clk 0:00:12]}  Nxg3 {[%clk 0:00:33]} 43. Rf7+ {[%clk 0:00:10]}  Ke5 {[%clk 0:00:34]} 44. Bf4+ {[%clk 0:00:10]}  Kxd5 {[%clk 0:00:33]} 45. Bxg3 {[%clk 0:00:11]}  Rc1 {[%clk 0:00:34]} 46. Rf6 {[%clk 0:00:10]}  Rc3 {[%clk 0:00:31]} 47. Bf2 {[%clk 0:00:10]}  a4 {[%clk 0:00:30]} 48. Bxa4 {[%clk 0:00:09]}  Ra3 {[%clk 0:00:31]} 49. Bd1 {[%clk 0:00:09]}  Ra1 {[%clk 0:00:31]} 50. Rxg6 {[%clk 0:00:09]}  Ra8 {[%clk 0:00:31]} 51. h5 {[%clk 0:00:09]}  Rh8 {[%clk 0:00:32]} 52. h6 {[%clk 0:00:10]}  Ke5 {[%clk 0:00:32]} 53. Be3 {[%clk 0:00:08]}  Kf5 {[%clk 0:00:33]} 54. Rxd6 {[%clk 0:00:07]}  Ke5 {[%clk 0:00:32]} 55. Ra6 {[%clk 0:00:07]}  Rh7 {[%clk 0:00:31]} 56. Bc2 {[%clk 0:00:07]}  Rh8 {[%clk 0:00:32]} 57. h7 {[%clk 0:00:07]}  Rxh7 {[%clk 0:00:33]} 58. Bxh7 {[%clk 0:00:05]} 1-0


[Site "https://www.chess.com"]

[Event "Titled Tuesday Blitz May 24 Early 2022"]
[White "Redzisz, Michal"]
[Black "Vainio, Ville"]
[WhiteFideId "21816107"]
[BlackFideId "507270"]
[WhiteElo "2004"]
[BlackElo "2228"]
[Result "1-0"]
[Round "07"]
[TimeControl "180+1"]
[Date "2022.05.25"]
[WhiteClock "0:00:18"]
[BlackClock "0:00:10"]

1. Nf3 {[%clk 0:03:00]}  d6 {[%clk 0:03:00]} 2. d4 {[%clk 0:02:57]}  Bg4 {[%clk 0:03:01]} 3. e3 {[%clk 0:02:54]}  Nd7 {[%clk 0:02:59]} 4. Be2 {[%clk 0:02:54]}  e5 {[%clk 0:03:00]} 5. dxe5 {[%clk 0:02:54]}  dxe5 {[%clk 0:03:00]} 6. b3 {[%clk 0:02:54]}  c6 {[%clk 0:02:48]} 7. Bb2 {[%clk 0:02:50]}  Qc7 {[%clk 0:02:48]} 8. Nbd2 {[%clk 0:02:47]}  Ngf6 {[%clk 0:02:33]} 9. O-O {[%clk 0:02:42]}  Be7 {[%clk 0:02:30]} 10. h3 {[%clk 0:02:40]}  Bh5 {[%clk 0:02:28]} 11. Nc4 {[%clk 0:02:38]}  e4 {[%clk 0:02:28]} 12. Nfe5 {[%clk 0:02:36]}  Bxe2 {[%clk 0:02:23]} 13. Qxe2 {[%clk 0:02:37]}  b5 {[%clk 0:01:53]} 14. Nxd7 {[%clk 0:02:25]}  Qxd7 {[%clk 0:01:54]} 15. Rad1 {[%clk 0:02:17]}  Qe6 {[%clk 0:01:53]} 16. Bxf6 {[%clk 0:02:03]}  Qxf6 {[%clk 0:01:44]} 17. Nd2 {[%clk 0:01:57]}  Qe6 {[%clk 0:01:41]} 18. c4 {[%clk 0:01:57]}  a6 {[%clk 0:01:31]} 19. Qg4 {[%clk 0:01:51]}  f5 {[%clk 0:01:09]} 20. Qxg7 {[%clk 0:01:50]}  Rg8 {[%clk 0:01:08]} 21. Qd4 {[%clk 0:01:35]}  Rd8 {[%clk 0:00:49]} 22. Qb6 {[%clk 0:01:35]}  f4 {[%clk 0:00:48]} 23. cxb5 {[%clk 0:01:26]}  axb5 {[%clk 0:00:42]} 24. exf4 {[%clk 0:01:21]}  Rd5 {[%clk 0:00:19]} 25. Qe3 {[%clk 0:01:11]}  Rd3 {[%clk 0:00:13]} 26. Qxe4 {[%clk 0:01:07]}  Qxh3 {[%clk 0:00:13]} 27. Rfe1 {[%clk 0:00:52]}  Rg7 {[%clk 0:00:13]} 28. Qxc6+ {[%clk 0:00:44]}  Kf8 {[%clk 0:00:13]} 29. Rxe7 {[%clk 0:00:18]}  Rxe7 {[%clk 0:00:10]} 30. gxh3 {[%clk 0:00:18]} 1-0


[Site "https://www.chess.com"]

[Event "Titled Tuesday Blitz May 24 Early 2022"]
[White "Rios Escobar, Adan"]
[Black "Steenbekkers, Franck"]
[WhiteFideId "3403645"]
[BlackFideId "1004220"]
[WhiteElo "2395"]
[BlackElo "2032"]
[Result "1-0"]
[Round "07"]
[TimeControl "180+1"]
[Date "2022.05.25"]
[WhiteClock "0:02:46"]
[BlackClock "0:02:38"]

1. d4 {[%clk 0:03:00]}  Nf6 {[%clk 0:02:55]} 2. g3 {[%clk 0:03:01]}  g6 {[%clk 0:02:54]} 3. Bg2 {[%clk 0:03:01]}  Bg7 {[%clk 0:02:54]} 4. e4 {[%clk 0:03:02]}  d6 {[%clk 0:02:53]} 5. Ne2 {[%clk 0:03:02]}  a6 {[%clk 0:02:52]} 6. O-O {[%clk 0:03:01]}  O-O {[%clk 0:02:50]} 7. a4 {[%clk 0:03:00]}  c6 {[%clk 0:02:49]} 8. Nbc3 {[%clk 0:02:59]}  Nbd7 {[%clk 0:02:48]} 9. a5 {[%clk 0:02:57]}  b5 {[%clk 0:02:46]} 10. axb6 {[%clk 0:02:57]}  Qxb6 {[%clk 0:02:42]} 11. b3 {[%clk 0:02:57]}  c5 {[%clk 0:02:40]} 12. e5 {[%clk 0:02:48]}  dxe5 {[%clk 0:02:38]} 13. dxe5 {[%clk 0:02:46]} 1-0


[Site "https://www.chess.com"]

[Event "Titled Tuesday Blitz May 24 Early 2022"]
[White "Rom, Jasper"]
[Black "Levitskiy, Andrey"]
[WhiteFideId "2023733"]
[BlackFideId "14132885"]
[WhiteElo "2233"]
[BlackElo "2301"]
[Result "0-1"]
[Round "07"]
[TimeControl "180+1"]
[Date "2022.05.25"]
[WhiteClock "0:00:02"]
[BlackClock "0:00:18"]

1. e4 {[%clk 0:03:00]}  e6 {[%clk 0:02:59]} 2. d4 {[%clk 0:03:00]}  d5 {[%clk 0:03:00]} 3. Bd3 {[%clk 0:03:00]}  dxe4 {[%clk 0:02:58]} 4. Bxe4 {[%clk 0:03:00]}  Nf6 {[%clk 0:02:58]} 5. Bf3 {[%clk 0:03:00]}  c5 {[%clk 0:02:59]} 6. Ne2 {[%clk 0:03:00]}  Nc6 {[%clk 0:02:59]} 7. Be3 {[%clk 0:03:00]}  e5 {[%clk 0:02:58]} 8. Bxc6+ {[%clk 0:02:52]}  bxc6 {[%clk 0:02:59]} 9. dxe5 {[%clk 0:02:42]}  Qxd1+ {[%clk 0:02:58]} 10. Kxd1 {[%clk 0:02:43]}  Ng4 {[%clk 0:02:58]} 11. Re1 {[%clk 0:02:40]}  Be7 {[%clk 0:02:48]} 12. Nd2 {[%clk 0:02:38]}  O-O {[%clk 0:02:33]} 13. Nf3 {[%clk 0:02:34]}  Nxe3+ {[%clk 0:01:52]} 14. fxe3 {[%clk 0:02:32]}  Bf5 {[%clk 0:01:50]} 15. Ng3 {[%clk 0:02:25]}  Be6 {[%clk 0:01:33]} 16. b3 {[%clk 0:02:09]}  f6 {[%clk 0:01:27]} 17. Ke2 {[%clk 0:01:27]}  fxe5 {[%clk 0:01:21]} 18. c4 {[%clk 0:01:17]}  a5 {[%clk 0:01:10]} 19. Ne4 {[%clk 0:01:14]}  a4 {[%clk 0:01:01]} 20. Nxe5 {[%clk 0:01:09]}  Bf5 {[%clk 0:00:59]} 21. Nd2 {[%clk 0:00:38]}  Bf6 {[%clk 0:00:50]} 22. Ndf3 {[%clk 0:00:37]}  Bg4 {[%clk 0:00:38]} 23. Nxg4 {[%clk 0:00:34]}  Bxa1 {[%clk 0:00:38]} 24. Rxa1 {[%clk 0:00:34]}  axb3 {[%clk 0:00:39]} 25. Nge5 {[%clk 0:00:21]}  Rxa2+ {[%clk 0:00:33]} 26. Nd2 {[%clk 0:00:12]}  Rxa1 {[%clk 0:00:28]} 27. Nxb3 {[%clk 0:00:12]}  Ra2+ {[%clk 0:00:27]} 28. Kd3 {[%clk 0:00:11]}  Rxg2 {[%clk 0:00:25]} 29. Nxc5 {[%clk 0:00:11]}  Rxh2 {[%clk 0:00:23]} 30. Nxc6 {[%clk 0:00:11]}  h5 {[%clk 0:00:19]} 31. Ne7+ {[%clk 0:00:10]}  Kf7 {[%clk 0:00:19]} 32. Nf5 {[%clk 0:00:08]}  Rd8+ {[%clk 0:00:19]} 33. Ke4 {[%clk 0:00:07]}  g6 {[%clk 0:00:18]} 34. Nd4 {[%clk 0:00:04]}  Rh4+ {[%clk 0:00:18]} 35. Kf3 {[%clk 0:00:03]}  Rhxd4 {[%clk 0:00:17]} 36. exd4 {[%clk 0:00:02]}  Rxd4 {[%clk 0:00:18]} 0-1


[Site "https://www.chess.com"]